fUST/lending_fUST_20260226
["ID","MTS","AMOUNT","RATE_DAILY","PERIOD"]
[406712079,1772113673611,-417.055578,0.00038356,120]
[406712080,1772113673652,-417.055578,0.00038356,120]
[406712081,1772113673693,-417.055578,0.00038356,120]
[406712082,1772113673736,-417.055575,0.00038356,120]
[406712083,1772113673779,-334.277403,0.00038356,60]
[406712084,1772113673820,-334.277403,0.00038356,60]
[406712085,1772113673860,-334.277403,0.00038356,60]
[406712086,1772113673900,-334.277403,0.00038356,60]
[406712087,1772113673940,-334.277403,0.00038356,60]
[406712088,1772113673980,-334.277403,0.00038356,60]
[406712089,1772113674020,-334.277403,0.00038356,60]
[406712090,1772113674064,-334.277403,0.00038356,60]
[406712091,1772113674104,-334.277403,0.00038356,60]
[406712092,1772113674145,-334.277403,0.00038356,60]
[406712093,1772113674189,-334.277403,0.00038356,60]
[406712094,1772113674232,-334.277403,0.00038356,60]
[406712095,1772113674275,-334.277403,0.00038356,60]
[406712096,1772113674316,-334.277403,0.00038356,60]
[406712097,1772113674358,-334.277403,0.00038356,60]
[406712098,1772113674401,-334.277403,0.00038356,60]
[406712099,1772113674443,-151.0,0.00038356,120]
[406712100,1772113674485,-334.277403,0.00038356,60]
[406712101,1772113674529,-183.639606,0.00038356,120]
[406712102,1772113674574,-334.277403,0.00038356,60]
[406712103,1772113674619,-334.277403,0.00038356,60]
[406712104,1772113674662,-334.277401,0.00038356,60]
[406712105,1772113674871,-500.0,0.00039404,30]
[406712106,1772113674922,-500.0,0.00039638,30]
[406712107,1772113674971,-10724.63,0.00039726,120]
[406712108,1772113675019,-500.0,0.00039891,30]
[406712109,1772113675066,-329.82838465,0.00039998,120]
[406712110,1772113675114,-1249.08,0.0004,120]
[406712111,1772113675159,-2500.0,0.0004,120]
[406712112,1772113675203,-500.0,0.00040412,30]
[406712113,1772113675246,-1311.55,0.000405,120]
[406712114,1772113675290,-2625.0,0.000405,120]
[406712115,1772113675359,-500.0,0.00040972,30]
[406712116,1772113675405,-1377.13,0.00041,120]
[406712117,1772113675448,-2756.25,0.00041,120]
[406712118,1772113675492,-500.0,0.00041488,30]
[406712119,1772113675537,-1445.98,0.000415,120]
[406712120,1772113675586,-2894.06,0.000415,120]
[406712121,1772113675632,-1518.28,0.00042,120]
[406712122,1772113675676,-5610.89,0.00042,30]
[406712123,1772113675718,-3038.76,0.00042,120]
[406712124,1772113675766,-3556.94,0.00042,30]
[406712125,1772113675810,-500.0,0.00042199,30]
[406712126,1772113675853,-500.0,0.00042364,30]
[406712127,1772113675898,-10724.63,0.00042465,120]
[406712128,1772113675941,-1594.2,0.000425,120]
[406712129,1772113675985,-3190.7,0.000425,120]
[406712130,1772113676025,-411.26523636,0.00042912,60]
[406712131,1772113676065,-411.26523636,0.00042912,60]
[406712132,1772113676108,-293.76088311,0.00042912,60]
[406712133,1772113676150,-1673.91,0.00043,120]
[406712134,1772113676192,-3350.23,0.00043,120]
[406712135,1772113676235,-338.1,0.00043491,120]
[406712136,1772113676277,-1757.6,0.000435,120]
[406712137,1772113676319,-3517.75,0.000435,120]
[406712138,1772113676362,-500.0,0.00043918,30]
[406712139,1772113676403,-1845.48,0.00044,120]
[406712140,1772113676446,-3693.63,0.00044,120]
[406712141,1772113676491,-338.1,0.00044129,120]
[406712142,1772113676537,-500.0,0.00044235,30]
[406712143,1772113676578,-500.0,0.00044259,30]
[406712144,1772113676619,-1125.47310456,0.0004444,30]
[406712145,1772113676659,-1937.76,0.000445,120]
[406712146,1772113676700,-3878.32,0.000445,120]
[406712147,1772113676742,-338.1,0.00044768,120]
[406712148,1772113676785,-500.0,0.00044823,30]
[406712149,1772113676828,-2034.65,0.00045,120]
[406712150,1772113676871,-5610.89,0.00045,30]
[406712151,1772113676912,-4072.23,0.00045,120]
[406712152,1772113676955,-3556.94,0.00045,30]
[406712153,1772113677002,-10724.63,0.00045205,120]
[406712154,1772113677045,-338.1,0.00045406,120]
[406712155,1772113677084,-1121.0,0.0004544,30]
[406712156,1772113677132,-2495019.6914,0.00045444,30]
[406712157,1772113677182,-2136.38,0.000455,120]
[406712158,1772113677226,-4275.84,0.000455,120]
[406712159,1772113677274,-500.0,0.00045539,60]
[406712160,1772113677319,-2243.19,0.00046,120]
[406712161,1772113677363,-4489.64,0.00046,120]
[406712162,1772113677405,-1000.0,0.00046,30]
[406712163,1772113677448,-338.1,0.00046045,120]
[406712164,1772113677491,-2758.19,0.00046136,120]
[406712165,1772113677536,-2758.19,0.00046136,120]
[406712166,1772113677582,-2758.19,0.00046136,120]
[406712167,1772113677626,-2758.19,0.00046136,120]
[406712168,1772113677668,-2758.19,0.00046136,120]
[406712169,1772113677712,-2758.19,0.00046136,120]
[406712170,1772113677756,-2758.19,0.00046136,120]
[406712171,1772113677805,-2758.19,0.00046136,120]
[406712172,1772113677846,-2758.19,0.00046136,120]
[406712173,1772113677887,-2758.19,0.00046136,120]
[406712174,1772113677929,-2758.19,0.00046136,120]
[406712175,1772113677972,-2758.19,0.00046136,120]
[406712176,1772113678015,-2758.19,0.00046136,120]
[406712177,1772113678056,-2758.19,0.00046136,120]
[406712178,1772113678095,-2758.19,0.00046136,120]
[406712179,1772113678135,-2758.19,0.00046136,120]
[406712180,1772113678176,-2758.19,0.00046136,120]
[406712181,1772113678218,-2758.19,0.00046136,120]
[406712182,1772113678261,-2758.19,0.00046136,120]
[406712183,1772113678304,-2758.19,0.00046136,120]
[406712184,1772113678344,-2758.19,0.00046136,120]
[406712185,1772113678385,-2758.19,0.00046136,120]
[406712186,1772113678428,-2758.19,0.00046136,120]
[406712187,1772113678468,-2758.41429117,0.00046136,120]
[406712188,1772113678511,-1121.0,0.0004644,30]
[406712189,1772113678557,-2355.36,0.000465,120]
[406712190,1772113678604,-4714.12,0.000465,120]
[406712191,1772113678650,-600.0,0.00046575,120]
[406712192,1772113678703,-600.0,0.00046575,120]
[406712193,1772113678763,-600.0,0.00046575,120]
[406712194,1772113678808,-2473.13,0.00047,120]
[406712195,1772113678851,-4949.82,0.00047,120]
[406712196,1772113678892,-1121.0,0.0004744,30]
[406712197,1772113678934,-2596.78,0.000475,120]
[406712198,1772113678977,-5197.32,0.000475,120]
[406712199,1772113679025,-10724.63,0.00047945,120]
[406712200,1772113679070,-2726.62,0.00048,120]
[406712201,1772113679113,-1000.0,0.00048,30]
[406712202,1772113679154,-5610.89,0.00048,30]
[406712203,1772113679195,-5457.18,0.00048,120]
[406712204,1772113679236,-6022.1362281,0.00048,120]
[406712205,1772113679280,-3556.94,0.00048,30]
[406712206,1772113679322,-4618.87114031,0.00048,120]
[406712207,1772113679372,-2212.2812,0.00048157,120]
[406712208,1772113679612,-2212.2812,0.00048157,120]
[406712209,1772113679657,-2212.2812,0.00048157,120]
[406712210,1772113679702,-2212.2812,0.00048157,120]
[406712211,1772113679747,-2212.2812,0.00048157,120]
[406712212,1772113679792,-2212.2812,0.00048157,120]
[406712213,1772113679841,-2212.2812,0.00048157,120]
[406712214,1772113679889,-2212.2812,0.00048157,120]
[406712215,1772113679937,-2212.2812,0.00048157,120]
[406712216,1772113679990,-2212.2812,0.00048157,120]
[406712217,1772113680043,-2212.2812,0.00048157,120]
[406712218,1772113680095,-2212.2812,0.00048157,120]
[406712219,1772113680147,-2212.2812,0.00048157,120]
[406712220,1772113680195,-2212.2812,0.00048157,120]
[406712221,1772113680246,-2212.2812,0.00048157,120]
[406712222,1772113680294,-2212.2812,0.00048157,120]
[406712223,1772113680345,-2212.2812,0.00048157,120]
[406712224,1772113680391,-2212.2812,0.00048157,120]
[406712225,1772113680437,-2212.2812,0.00048157,120]
[406712226,1772113680483,-2212.28248416,0.00048157,120]
[406712227,1772113680531,-843.0,0.00048398,120]
[406712228,1772113680578,-1888.00000001,0.00048439,30]
[406712229,1772113680621,-500.0,0.00048439,30]
[406712230,1772113680664,-250.0,0.00048439,30]
[406712231,1772113680706,-222.0,0.00048439,30]
[406712232,1772113680748,-250.0,0.00048439,30]
[406712233,1772113680791,-500.0,0.00048439,30]
[406712234,1772113680836,-250.0,0.00048439,30]
[406712235,1772113680880,-198.61698751,0.00048439,30]
[406712236,1772113680925,-250.0,0.00048439,30]
[406712237,1772113680971,-500.0,0.00048439,30]
[406712238,1772113681016,-250.0,0.00048439,30]
[406712239,1772113681058,-250.0,0.00048439,30]
[406712240,1772113681101,-500.0,0.00048439,30]
[406712241,1772113681143,-250.0,0.00048439,30]
[406712242,1772113681184,-250.0,0.00048439,30]
[406712243,1772113681229,-250.0,0.00048439,30]
[406712244,1772113681272,-500.0,0.00048439,30]
[406712245,1772113681313,-250.0,0.00048439,30]
[406712246,1772113681354,-250.0,0.00048439,30]
[406712247,1772113681395,-250.0,0.00048439,30]
[406712248,1772113681439,-500.0,0.00048439,30]
[406712249,1772113681480,-4697.13439826,0.00048439,30]
[406712250,1772113681524,-250.0,0.00048439,30]
[406712251,1772113681573,-250.0,0.00048439,30]
[406712252,1772113681622,-250.0,0.00048439,30]
[406712253,1772113681670,-500.0,0.00048439,30]
[406712254,1772113681719,-250.0,0.00048439,30]
[406712255,1772113681771,-298.42467709,0.00048439,30]
[406712256,1772113681820,-250.0,0.00048439,30]
[406712257,1772113681866,-250.0,0.00048439,30]
[406712258,1772113681912,-250.0,0.00048439,30]
[406712259,1772113681958,-250.0,0.00048439,30]
[406712260,1772113682004,-151.0,0.00048439,30]
[406712261,1772113682051,-2000.0,0.00048439,30]
[406712262,1772113682096,-10000.0,0.00048439,30]
[406712263,1772113682144,-2074.0,0.00048439,30]
[406712264,1772113682192,-10000.0,0.00048439,30]
[406712266,1772113682244,-2150.738,0.00048439,30]
[406712267,1772113682296,-10000.0,0.00048439,30]
[406712268,1772113682347,-2230.315306,0.00048439,30]
[406712269,1772113682398,-10000.0,0.00048439,30]
[406712270,1772113682449,-500.0,0.00048439,30]
[406712271,1772113682497,-2312.83697232,0.00048439,30]
[406712272,1772113682546,-10000.0,0.00048439,30]
[406712273,1772113682595,-2398.4119403,0.00048439,30]
[406712274,1772113682644,-500.0,0.00048439,30]
[406712275,1772113682691,-10000.0,0.00048439,30]
[406712276,1772113682738,-2487.15318209,0.00048439,30]
[406712277,1772113682784,-500.0,0.00048439,30]
[406712278,1772113682829,-10000.0,0.00048439,30]
[406712279,1772113682875,-2579.17784983,0.00048439,30]
[406712280,1772113682922,-500.0,0.00048439,30]
[406712281,1772113682967,-10000.0,0.00048439,30]
[406712282,1772113683013,-500.0,0.00048439,30]
[406712283,1772113683053,-2674.60743027,0.00048439,30]
[406712284,1772113683093,-10000.0,0.00048439,30]
[406712285,1772113683137,-500.0,0.00048439,30]
[406712286,1772113683181,-2773.56790519,0.00048439,30]
[406712287,1772113683224,-10000.0,0.00048439,30]
[406712288,1772113683270,-2876.18991768,0.00048439,30]
[406712289,1772113683318,-500.0,0.00048439,30]
[406712290,1772113683363,-10000.0,0.00048439,30]
[406712291,1772113683408,-2982.60894464,0.00048439,30]
[406712292,1772113683454,-10000.0,0.00048439,30]
[406712293,1772113683499,-10000.0,0.00048439,30]
[406712294,1772113683543,-10000.0,0.00048439,30]
[406712295,1772113683585,-10000.0,0.00048439,30]
[406712296,1772113683631,-10000.0,0.00048439,30]
[406712297,1772113683678,-10000.0,0.00048439,30]
[406712298,1772113683720,-10000.0,0.00048439,30]
[406712299,1772113683763,-10000.0,0.00048439,30]
[406712300,1772113683809,-6792.74402543,0.00048439,30]
[406712301,1772113683852,-151.0,0.00048439,30]
[406712302,1772113683895,-151.0,0.00048439,30]
[406712303,1772113683940,-156.587,0.00048439,30]
[406712304,1772113683987,-162.380719,0.00048439,30]
[406712305,1772113684035,-166.07188518,0.00048439,30]
[406712306,1772113684082,-168.3888056,0.00048439,30]
[406712307,1772113684127,-174.61919141,0.00048439,30]
[406712308,1772113684175,-181.08010149,0.00048439,30]
[406712309,1772113684221,-187.78006526,0.00048439,30]
[406712310,1772113684268,-151.0,0.00048439,30]
[406712311,1772113684313,-2400.0,0.00048439,30]
[406712312,1772113684360,-151.0,0.00048439,30]
[406712313,1772113684656,-2488.8,0.00048439,30]
[406712314,1772113684707,-151.0,0.00048439,30]
[406712315,1772113684758,-2580.8856,0.00048439,30]
[406712316,1772113684807,-2676.3783672,0.00048439,30]
[406712317,1772113684858,-250.0,0.00048439,30]
[406712318,1772113684913,-2775.40436679,0.00048439,30]
[406712319,1772113684963,-250.0,0.00048439,30]
[406712320,1772113685015,-151.0,0.00048439,30]
[406712321,1772113685065,-160.0,0.00048439,30]
[406712322,1772113685121,-250.0,0.00048439,30]
[406712323,1772113685179,-156.587,0.00048439,30]
[406712324,1772113685237,-160.0,0.00048439,30]
[406712325,1772113685304,-250.0,0.00048439,30]
[406712326,1772113685361,-160.0,0.00048439,30]
[406712327,1772113685418,-162.380719,0.00048439,30]
[406712328,1772113685471,-151.0,0.00048439,30]
[406712329,1772113685524,-250.0,0.00048439,30]
[406712330,1772113685578,-414.0,0.00048439,30]
[406712331,1772113685629,-160.0,0.00048439,30]
[406712332,1772113685683,-168.3888056,0.00048439,30]
[406712334,1772113685733,-151.0,0.00048439,30]
[406712335,1772113685786,-429.318,0.00048439,30]
[406712336,1772113685838,-160.0,0.00048439,30]
[406712337,1772113685888,-250.0,0.00048439,30]
[406712338,1772113685940,-174.61919141,0.00048439,30]
[406712339,1772113685988,-151.0,0.00048439,30]
[406712340,1772113686036,-445.202766,0.00048439,30]
[406712341,1772113686086,-160.0,0.00048439,30]
[406712342,1772113686133,-250.0,0.00048439,30]
[406712343,1772113686179,-250.0,0.00048439,30]
[406712344,1772113686228,-181.08010149,0.00048439,30]
[406712345,1772113686274,-151.0,0.00048439,30]
[406712346,1772113686321,-160.0,0.00048439,30]
[406712347,1772113686364,-461.67526834,0.00048439,30]
[406712348,1772113686408,-250.0,0.00048439,30]
[406712349,1772113686453,-187.78006525,0.00048439,30]
[406712350,1772113686498,-151.0,0.00048439,30]
[406712351,1772113686545,-203.46465514,0.00048439,30]
[406712352,1772113686593,-250.0,0.00048439,30]
[406712353,1772113686641,-478.75725327,0.00048439,30]
[406712354,1772113686687,-151.0,0.00048439,30]
[406712355,1772113686740,-194.72792766,0.00048439,30]
[406712356,1772113686787,-250.0,0.00048439,30]
[406712357,1772113686836,-496.47127164,0.00048439,30]
[406712358,1772113686882,-151.0,0.00048439,30]
[406712359,1772113686930,-201.93286099,0.00048439,30]
[406712360,1772113686976,-250.0,0.00048439,30]
[406712361,1772113687025,-514.84070869,0.00048439,30]
[406712362,1772113687069,-151.0,0.00048439,30]
[406712363,1772113687118,-209.40437684,0.00048439,30]
[406712364,1772113687165,-250.0,0.00048439,30]
[406712365,1772113687217,-151.0,0.00048439,30]
[406712366,1772113687269,-217.15233878,0.00048439,30]
[406712367,1772113687317,-250.0,0.00048439,30]
[406712368,1772113687363,-151.0,0.00048439,30]
[406712369,1772113687412,-225.18697532,0.00048439,30]
[406712370,1772113687461,-233.51889341,0.00048439,30]
[406712371,1772113687507,-151.0,0.00048439,30]
[406712372,1772113687555,-242.15909246,0.00048439,30]
[406712373,1772113687601,-151.0,0.00048439,30]
[406712374,1772113687643,-250.0,0.00048439,30]
[406712375,1772113687687,-251.11897888,0.00048439,30]
[406712376,1772113687728,-151.0,0.00048439,30]
[406712377,1772113687783,-151.0,0.00048439,30]
[406712378,1772113687829,-260.4103811,0.00048439,30]
[406712379,1772113687877,-250.0,0.00048439,30]
[406712380,1772113687922,-151.0,0.00048439,30]
[406712381,1772113687975,-270.0455652,0.00048439,30]
[406712382,1772113688026,-250.0,0.00048439,30]
[406712383,1772113688074,-151.0,0.00048439,30]
[406712384,1772113688125,-280.03725112,0.00048439,30]
[406712385,1772113688170,-250.0,0.00048439,30]
[406712386,1772113688216,-151.0,0.00048439,30]
[406712387,1772113688266,-290.39862941,0.00048439,30]
[406712388,1772113688312,-250.0,0.00048439,30]
[406712389,1772113688358,-250.0,0.00048439,30]
[406712390,1772113688407,-301.1433787,0.00048439,30]
[406712391,1772113688452,-250.0,0.00048439,30]
[406712392,1772113688497,-689909.3799,0.0004844,30]
[406712393,1772113688546,-1121.0,0.0004844,30]
[406712394,1772113688593,-2500.0,0.000485,120]
[406712395,1772113688640,-2862.95,0.000485,120]
[406712396,1772113688685,-5730.04,0.000485,120]
[406712397,1772113688733,-155.55,0.00048531,120]
[406712398,1772113688785,-200.0,0.00048639,120]
[406712399,1772113688830,-1000.0,0.000487,30]
[406712400,1772113688877,-200.0,0.0004871,120]
[406712401,1772113688923,-1538.86,0.00048767,38]
[406712402,1772113688971,-5000.0,0.00048771,30]
[406712403,1772113689019,-4853.82467043,0.00048794,82]
[406712404,1772113689064,-1000.0,0.000488,120]
[406712405,1772113689112,-1000.0,0.000488,120]
[406712406,1772113689160,-1000.0,0.000488,120]
[406712407,1772113689208,-4878.0,0.000488,45]
[406712408,1772113689255,-200.0,0.00048809,120]
[406712409,1772113689301,-2000.0,0.000489,120]
[406712410,1772113689346,-151.27309036,0.00048917,60]
[406712411,1772113689395,-843.0,0.00048946,120]
[406712412,1772113689443,-734.12343938,0.00049,120]
[406712413,1772113689490,-1113.0,0.00049,120]
[406712414,1772113689538,-5000.0,0.00049,120]
[406712415,1772113689584,-1241.471504,0.00049,120]
[406712416,1772113689632,-168.0,0.00049,30]
[406712417,1772113689854,-3000.0,0.00049,120]
[406712418,1772113689901,-2500.0,0.00049,120]
[406712419,1772113689950,-2000.0,0.00049,120]
[406712420,1772113689999,-30106.13627119,0.00049,120]
[406712421,1772113690047,-1000.0,0.00049,30]
[406712422,1772113690091,-5042.12684114,0.00049,30]
[406712423,1772113690135,-38789.94460793,0.00049,120]
[406712424,1772113690584,-1000.0,0.00011999,2]
[406712425,1772113690694,-1000.0,0.00011999,2]
[406712426,1772113690759,-1000.0,0.00011999,2]
[406712427,1772113690989,-1000.0,0.00011999,2]
[406712428,1772113691467,-1000.0,0.00011999,2]
[406712429,1772113691517,-1000.0,0.00011999,2]
[406712430,1772113697704,-1000.0,0.00012,2]
[406712431,1772113698804,-1000.0,0.00012,2]
[406712432,1772113699258,-1000.0,0.00012,2]
[406712433,1772113699846,-1000.0,0.00012,2]
[406712434,1772113699918,-1000.0,0.00012,2]
[406712435,1772113700908,-1000.0,0.00012,2]
[406712436,1772113700946,-1000.0,0.00012,2]
[406712437,1772113701056,-1000.0,0.00012,2]
[406712438,1772113702462,-1000.0,0.00012,2]
[406712439,1772113703665,-1000.0,0.00012,2]
[406712440,1772113704949,-1000.0,0.00012,2]
[406712441,1772113706301,-1000.0,0.00012,2]
[406712442,1772113711872,-1000.0,0.00012,2]
[406712443,1772113717274,-150.0,0.00028516,30]
[406712444,1772113717331,-150.0,0.00030256,30]
[406712445,1772113717380,-150.0,0.00031996,30]
[406712446,1772113717428,-150.11,0.00033737,30]
[406712447,1772113717476,-187.64,0.00035477,30]
[406712448,1772113717528,-225.17,0.00037218,30]
[406712449,1772113717580,-151.0,0.00038356,120]
[406712450,1772113717625,-215.302618,0.00038356,120]
[406712451,1772113717666,-151.0,0.00038356,60]
[406712452,1772113717709,-151.0,0.00038356,60]
[406712453,1772113717756,-182.784894,0.00038356,60]
[406712454,1772113717799,-308.997053,0.00038356,120]
[406712455,1772113717840,-151.0,0.00038356,120]
[406712456,1772113717880,-308.997053,0.00038356,120]
[406712457,1772113717922,-199.322906,0.00038356,120]
[406712458,1772113717965,-308.997053,0.00038356,120]
[406712459,1772113718008,-308.997053,0.00038356,120]
[406712460,1772113718049,-308.997053,0.00038356,120]
[406712461,1772113718090,-308.997053,0.00038356,120]
[406712462,1772113718132,-308.997053,0.00038356,120]
[406712463,1772113718176,-308.997053,0.00038356,120]
[406712464,1772113718222,-308.997053,0.00038356,120]
[406712465,1772113718271,-151.0,0.00038356,120]
[406712466,1772113718313,-308.997053,0.00038356,120]
[406712467,1772113718354,-151.0,0.00038356,120]
[406712468,1772113718394,-308.997053,0.00038356,120]
[406712469,1772113718437,-151.0,0.00038356,120]
[406712470,1772113718479,-308.997053,0.00038356,120]
[406712471,1772113718523,-151.0,0.00038356,120]
[406712472,1772113718567,-308.997053,0.00038356,120]
[406712473,1772113718610,-308.997053,0.00038356,120]
[406712474,1772113718656,-151.0,0.00038356,120]
[406712475,1772113718700,-308.997053,0.00038356,120]
[406712476,1772113718746,-151.0,0.00038356,120]
[406712477,1772113718803,-308.997053,0.00038356,120]
[406712478,1772113718848,-151.0,0.00038356,120]
[406712479,1772113718894,-308.997053,0.00038356,120]
[406712480,1772113718940,-635.338928,0.00038356,120]
[406712481,1772113718983,-151.0,0.00038356,120]
[406712482,1772113719251,-308.997053,0.00038356,120]
[406712483,1772113719295,-635.338928,0.00038356,120]
[406712484,1772113719335,-151.0,0.00038356,120]
[406712485,1772113719376,-308.997053,0.00038356,120]
[406712486,1772113719420,-635.338928,0.00038356,120]
[406712487,1772113719465,-308.997061,0.00038356,120]
[406712488,1772113719507,-151.0,0.00038356,120]
[406712489,1772113719552,-635.338928,0.00038356,120]
[406712490,1772113719599,-151.0,0.00038356,120]
[406712491,1772113719648,-635.338928,0.00038356,120]
[406712492,1772113719700,-151.0,0.00038356,120]
[406712493,1772113719752,-635.338928,0.00038356,120]
[406712494,1772113719799,-151.0,0.00038356,120]
[406712495,1772113719842,-635.338928,0.00038356,120]
[406712496,1772113719885,-635.338928,0.00038356,120]
[406712497,1772113719928,-151.0,0.00038356,120]
[406712498,1772113719976,-635.338928,0.00038356,120]
[406712499,1772113720023,-151.0,0.00038356,120]
[406712500,1772113720069,-635.338928,0.00038356,120]
[406712501,1772113720117,-151.0,0.00038356,120]
[406712502,1772113720158,-151.0,0.00038356,120]
[406712503,1772113720198,-151.0,0.00038356,120]
[406712504,1772113720240,-635.338928,0.00038356,120]
[406712505,1772113720282,-635.338928,0.00038356,120]
[406712506,1772113720323,-154.271446,0.00038356,120]
[406712507,1772113720364,-635.338928,0.00038356,120]
[406712508,1772113720406,-635.338928,0.00038356,120]
[406712509,1772113720450,-262.7,0.00038958,30]
[406712510,1772113720495,-512.82,0.0004,120]
[406712511,1772113720537,-2500.0,0.0004,120]
[406712512,1772113720579,-538.47,0.000405,120]
[406712513,1772113720621,-2625.0,0.000405,120]
[406712514,1772113720678,-300.22,0.00040698,30]
[406712515,1772113720719,-565.39,0.00041,120]
[406712516,1772113720763,-2756.25,0.00041,120]
[406712517,1772113720804,-593.66,0.000415,120]
[406712518,1772113720849,-2894.06,0.000415,120]
[406712519,1772113720892,-623.34,0.00042,120]
[406712520,1772113720936,-3038.76,0.00042,120]
[406712521,1772113720977,-3927.62,0.00042,30]
[406712522,1772113721018,-337.75,0.00042439,30]
[406712523,1772113721058,-654.51,0.000425,120]
[406712524,1772113721098,-3190.7,0.000425,120]
[406712525,1772113721140,-687.24,0.00043,120]
[406712526,1772113721181,-3350.23,0.00043,120]
[406712527,1772113721222,-721.6,0.000435,120]
[406712528,1772113721265,-3517.75,0.000435,120]
[406712529,1772113721305,-757.68,0.00044,120]
[406712530,1772113721344,-3693.63,0.00044,120]
[406712531,1772113721386,-375.28,0.00044179,30]
[406712532,1772113721426,-795.56,0.000445,120]
[406712533,1772113721472,-3878.32,0.000445,120]
[406712534,1772113721517,-835.34,0.00045,120]
[406712535,1772113721565,-4072.23,0.00045,120]
[406712536,1772113721611,-3927.62,0.00045,30]
[406712537,1772113721656,-1127440.2152,0.00045444,30]
[406712538,1772113721702,-877.11,0.000455,120]
[406712539,1772113721748,-4275.84,0.000455,120]
[406712540,1772113721796,-920.96,0.00046,120]
[406712541,1772113721840,-4489.64,0.00046,120]
[406712542,1772113721888,-967.01,0.000465,120]
[406712543,1772113721937,-4714.12,0.000465,120]
[406712544,1772113721982,-1015.36,0.00047,120]
[406712545,1772113722024,-1066.13,0.000475,120]
[406712546,1772113722067,-5197.32,0.000475,120]
[406712547,1772113722115,-1119.44,0.00048,120]
[406712548,1772113722160,-349.99999901,0.00048,30]
[406712549,1772113722207,-3927.62,0.00048,30]
[406712550,1772113722252,-1175.41,0.000485,120]
[406712551,1772113722296,-38623.86339207,0.00049,120]
[406712552,1772113722343,-6000.0,0.00049,30]
[406712553,1772113722386,-10000.0,0.00049,120]
[406712554,1772113722430,-8137.20000269,0.00049,120]
[406712555,1772113722473,-9000.0,0.00049,60]
[406712556,1772113722525,-10000.0,0.00049,120]
[406712557,1772113722575,-1234.18,0.00049,120]
[406712558,1772113722621,-200.0,0.00049024,120]
[406712559,1772113722664,-151.27309036,0.00049056,60]
[406712561,1772113722707,-187.53598415,0.00049107,60]
[406712562,1772113722752,-200.0,0.0004923,120]
[406712563,1772113722801,-5000.0,0.00049262,30]
[406712564,1772113722843,-1000.0,0.000493,30]
[406712565,1772113722884,-203.2633674,0.00049314,120]
[406712566,1772113722927,-500.0,0.00049315,120]
[406712567,1772113722969,-177.82471639,0.00049315,120]
[406712568,1772113723011,-1000.0,0.00049315,120]
[406712569,1772113723056,-10000.0,0.00049315,120]
[406712570,1772113723100,-3203.67,0.00049315,120]
[406712571,1772113723145,-500.0,0.00049315,120]
[406712572,1772113723190,-500.0,0.00049315,120]
[406712573,1772113723234,-500.0,0.00049315,60]
[406712574,1772113723279,-500.0,0.00049315,120]
[406712575,1772113723325,-500.0,0.00049315,120]
[406712576,1772113723372,-500.0,0.00049315,120]
[406712577,1772113723419,-500.0,0.00049315,120]
[406712578,1772113723462,-500.0,0.00049315,120]
[406712579,1772113723506,-520.27222165,0.00049315,120]
[406712580,1772113723553,-500.0,0.00049315,120]
[406712581,1772113723596,-500.0,0.00049315,120]